Workbook

Sheet 09022023
A1: Школа | B1: - | E1: Отд./корп | I1: День
A3: Прием пищи | B3: Раздел | C3: № рец. | D3: Блюдо | E3: Выход, г | F3: Цена, руб | G3: Калорийность | H3: Белки | I3: Жиры | J3: Углеводы
A4: Завтрак | B4: гор.блюдо | C4: ТТК 2022 г | D4: Ёжики мясные с рисом в соусе томатном | E4: 100 | G4: 127.00 | H4: 7.06 | I4: 6.42 | J4: 10.23
B5: гор блюдо | C5: № 202/2015 | D5: Макаронные изделия отварные | E5: 150 | G5: 180.00 | H5: 5.60 | I5: 5.06 | J5: 35.91
B6: гор.напиток | C6: 348/2018 | D6: Компот из плодов сушеных (урюк) | E6: 200 | G6: 47.00 | H6: 1.00 | I6: 0.08 | J6: 10.56
A7: понедельник | B7: хлеб | D7: Хлеб ржано-пшеничный | E7: 15 | G7: 33.00 | H7: 0.75 | I7: 0.15 | J7: 6.75
B8: хлеб | D8: Хлеб пшеничный | E8: 15 | G8: 35.00 | H8: 1.14 | I8: 0.12 | J8: 7.38
C9: № 15/2015 г | D9: Сыр | E9: 15 | G9: 53.00 | H9: 3.94 | I9: 3.99 | J9: 0.00
B10: печенье | D10: Печенье | E10: 15 | G10: 66.00 | H10: 0.71 | I10: 3.96 | J10: 10.56
A11: ИТОГО | E11: =E4+E5+E6+E7+E8+E9+E10 -> 510 | F11: 62.10 | G11: =G4+G5+G6+G7+G8+G9+G10 -> 541 | H11: =H4+H5+H6+H7+H8+H9+H10 -> 20.20 | I11: =I4+I5+I6+I7+I8+I9+I10 -> 19.78 | J11: =J4+J5+J6+J7+J8+J9+J10 -> 81.39
A12: Завтрак | B12: гор.блюдо | C12: ТТК 2021 | D12: Жаркое из птицы | E12: 190 | G12: 265.00 | H12: 13.52 | I12: 13.68 | J12: 21.91
B13: гор.напиток | C13: ТТК 2021г | D13: Компот из замороженной компотной смеси | E13: 200 | G13: 46 | H13: 0.13 | I13: 0.02 | J13: 11.15
B14: хлеб | D14: Хлеб ржано-пшеничный | E14: 20 | G14: 44.00 | H14: 1.00 | I14: 0.20 | J14: 9.00
A15: вторник | B15: хлеб | D15: Хлеб пшеничный | E15: 15 | G15: 35.00 | H15: 1.14 | I15: 0.12 | J15: 7.38
B16: закуска | C16: № 47/2015 г | D16: Салат из квашенной капусты (без лука) | E16: 60 | G16: 51.00 | H16: 0.98 | I16: 3.05 | J16: 4.63
B17: фрукт | C17: 338/2015 | D17: Плоды свежие (яблоки) | E17: 100 | G17: 47.00 | H17: 0.40 | I17: 0.40 | J17: 9.80
A18: ИТОГО | E18: =E12+E13+E14+E15+E16+E17 -> 585 | F18: 62.10 | G18: =G12+G13+G14+G15+G16+G17 -> 488.00 | H18: =H12+H13+H14+H15+H16+H17 -> 17.17 | I18: 17.47 | J18: 63.87
A19: Завтрак | B19: гор.блюдо | C19: ТТК 2021 г | D19: Котлеты "Аппетитные" | E19: 90 | G19: 153 | H19: 13.39 | I19: 9.74 | J19: 6.99
B20: гор.блюдо | C20: №303/2015 | D20: Каша рисовая вязкая с маслом сливочным | E20: 155 | G20: 155 | H20: 2.34 | I20: 4.75 | J20: 20.98
B21: гор.напиток | C21: ТТК 2023 | D21: Напиток яблочный | E21: 200 | G21: 108.00 | H21: 0.10 | I21: 0.10 | J21: 26.40
A22: среда | B22: хлеб | D22: Хлеб ржано-пшеничный | E22: 20 | G22: 44.00 | H22: 1.00 | I22: 0.20 | J22: 9.00
B23: хлеб | D23: Хлеб пшеничный | E23: 15 | G23: 35.00 | H23: 1.14 | I23: 0.12 | J23: 7.38
B24: закуска | C24: № 45/2015 | D24: Салат из белокачанной капусты | E24: 60 | G24: 54.00 | H24: 0.93 | I24: 3.05 | J24: 5.64
B25: печенье | D25: Печенье | E25: 15 | G25: 24.00 | H25: 0.54 | I25: 0.57 | J25: 4.11
A26: ИТОГО | E26: =E19+E20+E21+E22+E23+E24+E25 -> 555 | F26: 62.10 | G26: =G19+G20+G21+G22+G23+G24+G25 -> 573.00 | H26: =H19+H20+H21+H22+H23+H24+H25 -> 19.44 | I26: 18.53 | J26: 80.50
A27: Завтрак | B27: гор.блюдо | C27: ТТК | D27: Гуляш из птицы | E27: 100 | G27: 126.00 | H27: 8.05 | I27: 9.27 | J27: 3.13
B28: гор.блюдо | C28: № 302/2015 г | D28: Каша гречневая рассыпчатая | E28: 150 | G28: 242.00 | H28: 6.62 | I28: 5.39 | J28: 41.87
B29: гор.напиток | C29: ТТК 2021 г | D29: Чай с сахаром | E29: 208 | G29: 32.00 | H29: 0.02 | J29: 7.98
A30: четверг | B30: хлеб | D30: Хлеб ржано-пшеничный | E30: 20 | G30: 44.00 | H30: 1.00 | I30: 0.20 | J30: 9.00
B31: хлеб | D31: Хлеб пшеничный | E31: 15 | G31: 35.00 | H31: 1.14 | I31: 0.12 | J31: 7.38
B32: закуска | C32: № 52/2015 г | D32: Свекла отварная (дольками) с маслом | E32: 60 | G32: 56.00 | H32: 0.85 | I32: 3.65 | J32: 5.02
B33: фрукты | C33: №338/2015 | D33: Плоды свежие (яблоки) | E33: 100 | G33: 47.00 | H33: 0.40 | I33: 0.40 | J33: 9.80
A34: ИТОГО | E34: =E27+E28+E29+E30+E31+E32+E33 -> 653 | F34: 62.10 | G34: =G27+G28+G29+G30+G31+G32+G33 -> 582.00 | H34: =H27+H28+H29+H30+H31+H32+H33 -> 18.08 | I34: =I27+I28+I29+I30+I31+I32+I33 -> 19.03 | J34: =J27+J28+J29+J30+J31+J32+J33 -> 84.18
A35: Завтрак | B35: гор.блюдо | C35: ТТК 2021 г | D35: Биточки рыбные, огурец соленый (доп.грнир) | E35: 90 | G35: 132 | H35: 9.5 | I35: 8.3 | J35: 4.8
B36: гор. блюдо | C36: № 312/2015 г | D36: Пюре кртофельное с маслом сливочным | E36: 155 | G36: 146 | H36: 3.28 | I36: 4.66 | J36: 22.03
B37: гор.напиток | C37: № 648/2004 г | D37: Кисель из концентрата | E37: 200 | G37: 53 | H37: 0.00 | I37: 0.00 | J37: 13.10
A38: пятница | B38: хлеб | D38: Хлеб ржано-пшеничный | E38: 20 | G38: 44.00 | H38: 1.00 | I38: 0.20 | J38: 9.00
B39: хлеб | D39: Хлеб пшеничный | E39: 15 | G39: 35.00 | H39: 1.14 | I39: 0.12 | J39: 7.38
C40: Акт 2018 г | D40: Блинчики со сгущенным молоком | E40: 55 | G40: 114 | H40: 3.19 | I40: 2.52 | J40: 19.5
A41: ИТОГО | E41: 535 | F41: 62.10 | G41: =G35+G36+G37+G38+G39+G40 -> 524 | H41: =H35+H36+H37+H38+H39+H40 -> 18.11 | I41: 15.80 | J41: 75.81
A42: Завтрак | B42: гор.блюдо | C42: № 243/2015 г | D42: Сосиски отварные | E42: 100 | G42: 144 | H42: 9.40 | I42: 11.00 | J42: 1.80
B43: гор.блюдо | C43: № 202/2015 г | D43: Макаронные изделия отваренные | E43: 150 | G43: 180 | H43: 5.60 | I43: 5.06 | J43: 35.91
B44: гор.напиток | C44: ТТК 2021 г | D44: Компот из замороженной компотной смеси | E44: 200 | G44: 46 | H44: 0.13 | I44: 0.02 | J44: 11.15
A45: Суббота | B45: хлеб | D45: Хлеб ржано-пшеничный | E45: 15 | G45: 33.00 | H45: 0.75 | I45: 0.15 | J45: 6.75
B46: хлеб | D46: Хлеб пшеничный | E46: 15 | G46: 35.00 | H46: 1.14 | I46: 0.12 | J46: 7.38
B47: печенье | C47: Акт 2019 | D47: Печенье | E47: 30 | G47: 144.00 | H47: 2.17 | I47: 4.24 | J47: 20.51
A48: ИТОГО | E48: =E42+E43+E44+E45+E46+E47 -> 510 | G48: =G42+G43+G44+G45+G46+G47 -> 582 | H48: =H42+H43+H44+H45+H46+H47 -> 19.19 | I48: 20.59 | J48: 83.50
